bitfinex/quotes_ETHUSD_20260113
["timestamp","ask_amount","ask_price","bid_price","bid_amount"]
[1768283761736,0.002,3132.6,3132.2,0.001]
[1768283763334,0.002,3132.6,3132.2,0.252]
[1768283765139,0.002,3132.6,3132.2,0.001]
[1768283765350,2.32294681,3132.6,3132.2,0.252]
[1768283765736,0.002,3132.6,3132.2,0.252]
[1768283769655,2.32094681,3132.5,3132.2,0.252]
[1768283770354,0.002,3132.6,3132.2,0.252]
[1768283771158,2.32094681,3132.5,3132.2,0.252]
[1768283772060,0.002,3132.6,3132.2,0.252]
[1768283773957,0.002,3132.3,3132.2,0.252]
[1768283774159,0.002,3132.3,3132.2,0.50951878]
[1768283774323,0.002,3132.3,3132.2,0.252]
[1768283775655,2.27910499,3132.6,3132.2,0.252]
[1768283776267,2.27910499,3132.6,3132.2,0.001]
[1768283778336,2.27710499,3132.5,3132.2,0.001]
[1768283779491,0.002,3132.6,3132.2,0.001]
[1768283779643,2.27910499,3132.6,3132.2,0.001]
[1768283780663,2.27710499,3132.5,3132.2,0.001]
[1768283780864,2.27710499,3132.3,3131.6,0.252]
[1768283781039,7.17470825,3132.2,3131.6,0.252]
[1768283782934,7.17470825,3132.4,3131.6,0.252]
[1768283783134,4.89760326,3132.4,3131.6,2.35873536]
[1768283783353,4.89760326,3132.4,3131.7,2.3427089]
[1768283783766,2.27710499,3132.4,3131.7,2.3427089]
[1768283784755,5.46954681,3132.4,3131.7,2.3427089]
[1768283785174,2.27710499,3132.4,3131.7,2.3427089]
[1768283785378,3.19245058,3132.4,3131.7,0.23597354]
[1768283785579,3.19245058,3132.4,3132.0,0.001]
[1768283785781,0.002,3132.3,3132.0,0.001]
[1768283787097,2.27710499,3132.0,3129.9,7.81554757]
[1768283787389,2.27710499,3132.0,3129.7,10.32]
[1768283787390,2.27710499,3131.3,3129.7,2.10673536]
[1768283787594,2.27710499,3131.3,3130.2,2.10673536]
[1768283787779,2.27710499,3131.1,3130.1,2.35773536]
[1768283788095,2.27710499,3130.9,3130.1,2.35773536]
[1768283788292,2.27710499,3130.9,3130.1,2.5935089]
[1768283788495,2.27710499,3130.9,3130.1,2.5435089]
[1768283788795,4.89760326,3130.8,3130.1,2.5435089]
[1768283788982,7.17470825,3130.8,3130.1,2.5435089]
[1768283789182,2.27710499,3130.8,3130.1,2.5435089]
[1768283789362,2.27710499,3130.8,3130.2,0.25435089]
[1768283789564,2.27710499,3130.8,3130.1,0.201]
[1768283791894,2.27710499,3130.8,3129.8,0.21067354]
[1768283792097,2.27710499,3130.8,3129.9,0.251]
[1768283792304,2.27710499,3130.8,3130.0,0.251]
[1768283794700,2.27710499,3130.8,3130.0,5.14860326]
[1768283794903,2.27710499,3130.8,3130.1,0.51486033]
[1768283795798,2.22993274,3131.0,3130.2,2.10484751]
[1768283797075,3.22566385,3131.1,3130.1,0.51486033]
[1768283797076,2.22993274,3130.7,3130.1,0.51486033]
[1768283797279,2.02800664,3130.7,3130.3,0.001]
[1768283797503,2.22993274,3130.9,3130.3,0.001]
[1768283797899,2.26182354,3130.9,3130.3,0.001]
[1768283798103,2.22993274,3130.8,3130.3,0.001]
[1768283799692,2.26182354,3131.0,3130.3,0.001]
[1768283800485,2.22993274,3131.0,3130.3,0.001]
[1768283800680,2.26182354,3131.0,3130.3,0.001]
[1768283801106,2.22993274,3130.9,3130.3,0.001]
[1768283801304,2.22993274,3130.8,3130.3,0.001]
[1768283803918,2.08711428,3130.8,3130.3,0.001]
[1768283807128,2.26182354,3130.7,3130.3,0.001]
[1768283807437,2.22993274,3130.2,3129.5,0.251]
[1768283807729,2.22993274,3130.2,3129.5,2.35584751]
[1768283807891,2.22993274,3130.2,3129.2,2.10484751]
[1768283808094,2.22993274,3130.1,3129.2,2.10484751]
[1768283808411,2.22993274,3130.1,3129.2,2.31757407]
[1768283809016,3.19485485,3130.1,3129.2,0.21272656]
[1768283809219,0.92506764,3130.6,3130.1,2.10484751]
[1768283809414,2.22993274,3131.4,3130.2,0.07410532]
[1768283809613,2.22993274,3131.1,3130.2,0.32510532]
[1768283809820,2.26182354,3131.0,3130.2,0.32510532]
[1768283810029,2.26182354,3131.0,3130.3,0.001]
[1768283810198,0.09631901,3130.9,3130.3,0.001]
[1768283813667,5.52022496,3130.9,3130.3,0.001]
[1768283814026,2.22993274,3130.8,3130.3,0.001]
[1768283814356,0.0318908,3130.7,3130.3,0.001]
[1768283814594,2.22993274,3130.5,3129.5,2.10484751]
[1768283814865,2.32625175,3130.3,3129.5,0.21048475]
[1768283817151,2.22993274,3130.2,3129.1,0.0224181]
[1768283817356,2.22993274,3130.0,3129.1,0.0224181]
[1768283817566,2.22993274,3130.0,3129.1,2.12726561]
[1768283818141,0.251,3130.1,3129.2,2.10484751]
[1768283818352,5.42411926,3130.7,3129.5,2.10484751]
[1768283818549,4.13469634,3130.6,3129.6,2.31533226]
[1768283818748,0.68942049,3130.5,3129.6,2.31533226]
[1768283818954,2.91935323,3130.4,3129.6,0.21048475]
[1768283819165,0.68942049,3130.3,3129.6,0.21048475]
[1768283819347,2.22993274,3130.4,3129.6,0.21048475]
[1768283820156,5.42448907,3130.4,3129.6,0.21048475]
[1768283820355,6.31465464,3130.4,3129.5,2.10484751]
[1768283821867,2.22993274,3130.3,3129.5,2.10484751]
[1768283822166,2.22993274,3130.3,3129.8,0.001]
[1768283824986,5.2531402,3130.5,3129.8,0.001]
[1768283825140,6.61329978,3130.5,3129.8,0.001]
[1768283825344,6.58140898,3130.5,3129.8,0.001]
[1768283825542,0.0318908,3130.4,3129.8,0.001]
[1768283827557,3.22639923,3130.4,3129.8,0.001]
[1768283828268,5.22142755,3130.3,3129.8,0.001]
[1768283828469,5.72205709,3130.3,3129.8,0.001]
[1768283829385,2.02683382,3130.2,3129.8,0.001]
[1768283829584,0.251,3130.1,3129.8,0.001]
[1768283830182,2.27783382,3130.1,3129.8,0.001]
[1768283830751,0.251,3130.1,3129.8,0.001]
[1768283832277,0.251,3130.0,3129.8,0.001]
[1768283834002,0.23281846,3130.0,3129.8,0.001]
[1768283834498,5.25322234,3130.4,3129.8,0.001]
[1768283834499,2.05872462,3130.4,3130.1,0.001]
[1768283834698,1.91269451,3130.2,3130.1,0.001]
[1768283837781,0.2828908,3130.3,3130.1,0.001]
[1768283839109,0.09631901,3130.2,3130.1,0.001]
[1768283843736,0.09631901,3130.2,3129.8,2.01025515]
[1768283844635,0.09631901,3130.2,3129.3,2.01025515]
[1768283844839,0.0318908,3130.1,3129.5,2.01025515]
[1768283845003,0.12820981,3130.2,3129.5,2.01025515]
[1768283852343,2.04090432,3130.2,3129.2,3.19566752]
[1768283852522,2.04090432,3130.2,3129.1,2.03267325]
[1768283852721,2.14188494,3130.1,3129.1,2.03267325]
[1768283853428,0.0318908,3130.0,3129.1,2.03267325]
[1768283854125,1.94458531,3130.1,3129.1,2.03267325]
[1768283857562,5.13938306,3130.1,3129.1,2.03267325]
[1768283857850,1.96970721,3130.0,3129.1,2.03267325]
[1768283858248,1.96970721,3130.0,3129.1,0.0224181]
[1768283858415,1.96970721,3130.0,3129.4,0.001]
[1768283859748,1.96970721,3129.9,3129.4,0.001]
[1768283859954,2.22070721,3129.8,3129.4,0.001]
[1768283862982,2.00159801,3130.1,3129.4,0.001]
[1768283863166,2.22070721,3130.0,3129.4,0.18398019]
[1768283863338,0.251,3130.0,3129.4,0.001]
[1768283863538,0.251,3130.0,3129.4,1.82980186]
[1768283863952,0.0318908,3130.1,3129.4,1.82980186]
[1768283864153,0.251,3130.0,3129.4,1.82980186]
[1768283864776,1.96970721,3129.9,3129.4,0.001]
[1768283864977,1.96970721,3129.9,3129.5,0.49058287]
[1768283865180,0.251,3130.0,3129.5,0.49058287]
[1768283865370,2.22070721,3130.0,3129.5,0.49058287]
[1768283865571,0.251,3130.0,3129.5,2.31938473]
[1768283865878,3.19479247,3130.1,3129.5,1.82880186]
[1768283866180,0.251,3130.0,3129.4,0.001]
[1768283867558,1.96970721,3129.9,3129.4,0.001]
[1768283867764,2.00159801,3129.9,3129.4,0.001]
[1768283868297,0.0318908,3129.9,3129.4,0.001]
[1768283870306,0.0318908,3129.9,3129.4,1.82980186]
[1768283870504,0.251,3130.0,3129.4,2.50326492]
[1768283871004,1.96970721,3130.0,3129.4,0.67446306]
[1768283871199,0.251,3129.9,3129.4,0.67446306]
[1768283872707,2.22070721,3129.9,3129.4,0.67446306]
[1768283873302,1.96970721,3129.9,3129.4,0.67446306]
[1768283873520,0.251,3129.8,3129.4,0.67446306]
[1768283874602,0.251,3129.8,3129.4,5.57929176]
[1768283874774,1.96970721,3129.9,3129.5,0.55792918]
[1768283874976,0.251,3129.8,3129.5,0.55792918]
[1768283875180,3.22657665,3130.2,3129.8,0.00766653]
[1768283875375,0.251,3130.1,3129.8,0.00766653]
[1768283875702,0.251,3130.0,3129.8,0.00766653]
[1768283879042,0.2828908,3130.0,3129.8,0.00766653]
[1768283879221,3.47778163,3130.0,3129.8,0.00766653]
[1768283879621,1.96970721,3129.9,3129.8,0.00766653]
[1768283880245,3.47778163,3130.0,3129.8,0.00766653]
[1768283880450,1.96970721,3129.9,3129.4,0.001]
[1768283880635,1.96970721,3129.7,3129.4,0.001]
[1768283881143,2.00159801,3129.7,3129.4,0.001]
[1768283882244,1.96970721,3129.6,3129.4,0.001]
[1768283882549,0.251,3129.5,3129.4,0.001]
[1768283884360,2.22070721,3129.5,3129.4,0.001]
[1768283885188,0.251,3129.5,3129.4,0.001]
[1768283886265,2.70324699,3129.5,3129.4,0.001]
[1768283886466,2.70324699,3129.5,3129.1,0.0224181]
[1768283886467,2.16683175,3129.5,3129.1,0.0224181]
[1768283886839,2.19872255,3129.5,3129.1,0.0224181]
[1768283887254,1.91583175,3129.4,3129.1,0.0224181]
[1768283888464,0.251,3129.3,3129.1,0.0224181]
[1768283892162,0.0318908,3129.5,3129.3,0.07412241]
[1768283892394,2.16683175,3129.5,3129.3,0.07412241]
[1768283894486,0.251,3129.5,3129.3,0.07412241]
[1768283894792,1.86621438,3129.4,3129.3,0.07412241]
[1768283900007,0.251,3129.5,3129.3,0.07412241]
[1768283902179,2.11721438,3129.5,3129.3,0.07412241]
[1768283902380,0.251,3129.5,3129.3,0.07412241]
[1768283904709,0.251,3129.5,3129.3,2.14027524]
[1768283907634,0.251,3129.5,3129.3,0.2707309]
[1768283909340,0.251,3129.5,3129.3,0.07412241]
[1768283911941,2.11721438,3129.5,3129.3,0.07412241]
[1768283912137,1.86621438,3129.4,3129.3,0.07412241]
[1768283912433,0.251,3129.5,3129.3,0.07412241]
[1768283912844,0.251,3129.5,3129.1,0.0224181]
[1768283914038,2.11721438,3129.5,3129.1,0.0224181]
[1768283917565,0.251,3129.5,3129.1,0.0224181]
[1768283917757,0.0318908,3129.4,3129.1,0.0224181]
[1768283918872,3.4464323,3129.5,3129.1,0.0224181]
[1768283919179,0.251,3129.6,3129.3,4.9048287]
[1768283919471,0.251,3129.6,3129.1,4.9272468]
[1768283920041,0.251,3129.6,3129.1,6.70341362]
[1768283920240,0.251,3129.6,3129.1,1.79858492]
[1768283921238,0.251,3129.6,3129.1,1.97844341]
[1768283922179,3.44631225,3129.6,3129.1,1.97844341]
[1768283922969,1.76078035,3129.5,3129.1,0.20227659]
[1768283923678,1.76078035,3129.5,3129.1,0.0224181]
[1768283924190,3.44631225,3129.6,3129.1,0.0224181]
[1768283926006,1.76078035,3129.5,3129.1,0.0224181]
[1768283926218,3.44631225,3129.6,3129.1,0.0224181]
[1768283926507,1.76078035,3129.5,3129.1,0.0224181]
[1768283926805,3.44631225,3129.6,3129.1,0.0224181]
[1768283926986,5.2070926,3129.6,3129.1,0.0224181]
[1768283927182,1.79267115,3129.5,3129.1,0.0224181]
[1768283927815,1.76078035,3129.4,3128.8,0.00081121]
[1768283929923,4.95633865,3129.4,3128.8,0.00081121]
[1768283931018,1.76078035,3129.3,3128.8,0.00081121]
[1768283931902,4.95638737,3129.3,3128.8,0.00081121]
[1768283932104,1.76078035,3129.3,3128.8,0.00081121]
[1768283932845,4.95639247,3129.3,3128.8,0.00081121]
[1768283933241,1.76078035,3129.3,3128.8,0.00081121]
[1768283935636,3.19553407,3129.4,3128.8,0.00081121]
[1768283935938,3.4463263,3129.6,3128.9,1.77616682]
[1768283936305,0.0318908,3129.5,3128.9,1.77616682]
[1768283936538,3.4463263,3129.6,3128.9,1.77616682]
[1768283938355,0.0318908,3129.5,3128.8,0.17850901]
[1768283938563,1.79267115,3129.5,3128.8,0.17850901]
[1768283939559,1.79267115,3129.5,3128.8,0.00081121]
[1768283940468,1.76078035,3129.3,3128.8,0.00081121]
[1768283940669,3.19550073,3129.4,3128.8,0.00081121]
[1768283940869,1.76078035,3129.3,3128.8,0.00081121]
[1768283941562,1.76078035,3129.3,3129.1,0.001]
[1768283941738,1.76278035,3129.3,3129.1,0.001]
[1768283942738,4.95841567,3129.3,3129.1,0.001]
[1768283943759,0.002,3129.3,3129.1,0.001]
[1768283944465,1.76078035,3129.2,3129.1,0.001]
[1768283946389,0.002,3129.3,3129.1,0.001]
[1768283946564,1.67284816,3129.5,3129.1,0.001]
[1768283946764,1.67284816,3129.5,3129.1,0.49172107]
[1768283946974,1.67284816,3129.5,3129.1,0.001]
[1768283947845,1.67284816,3129.3,3128.8,0.00081121]
[1768283948046,1.70473896,3129.2,3128.8,0.00081121]
[1768283949382,1.67284816,3129.2,3128.8,0.00081121]
[1768283949584,3.19590923,3129.0,3128.8,0.00081121]
[1768283949884,3.19584583,3129.1,3128.8,0.00081121]
[1768283950266,3.44684583,3129.1,3128.8,0.00081121]
[1768283950787,0.251,3129.1,3128.8,0.00081121]
[1768283952377,0.251,3129.1,3128.8,1.56290111]
[1768283952785,3.44651985,3129.4,3128.8,1.56290111]
[1768283954292,1.5582582,3129.3,3128.8,0.00081121]
[1768283954507,3.44651985,3129.4,3128.8,1.56403012]
[1768283955107,3.44651985,3129.4,3129.1,0.001]
[1768283959525,0.251,3129.4,3129.1,0.001]
[1768283960042,3.44654302,3129.4,3129.1,0.001]
[1768283961391,5.00480122,3129.4,3129.1,0.001]
[1768283961725,3.44654302,3129.4,3129.1,0.001]
[1768283965931,3.19530176,3129.6,3129.1,0.001]
[1768283966132,0.251,3129.5,3129.1,1.56421891]
[1768283966525,0.251,3129.5,3129.1,0.001]
[1768283969532,5.00465746,3129.5,3129.1,0.001]
[1768283969730,0.002,3130.0,3129.3,1.56321891]
[1768283969932,0.002,3130.0,3129.4,0.67204296]
[1768283970229,1.5602582,3130.0,3129.5,0.0222353]
[1768283970925,0.002,3130.0,3129.5,1.58545421]
[1768283971941,0.002,3130.0,3129.6,1.56321891]
[1768283973228,3.44550986,3130.4,3129.9,1.56321891]
[1768283976251,0.251,3130.4,3129.9,1.56321891]
[1768283978251,0.002,3130.1,3129.9,1.56321891]
[1768283978463,0.251,3130.4,3129.7,1.63932113]
[1768283978617,3.19419543,3130.7,3129.9,1.63932113]
[1768283978811,0.002,3130.8,3129.9,1.63932113]
[1768283979053,0.002,3130.4,3130.0,1.63932113]
[1768283979365,1.51379,3130.8,3130.0,1.63932113]
[1768283979731,1.51379,3130.8,3130.1,4.90621071]
[1768283979932,1.51379,3130.8,3130.2,0.65455318]
[1768283980526,1.5713062,3130.9,3130.2,0.65455318]
[1768283980941,4.76517561,3131.0,3130.2,0.65455318]
[1768283981136,1.5713062,3130.9,3130.2,0.65455318]
[1768283982256,1.5713062,3130.9,3130.2,3.84921474]
[1768283982428,3.44678902,3131.1,3130.4,1.63932113]
[1768283983052,1.5713062,3131.0,3130.2,1.63932113]
[1768283983432,1.5713062,3131.0,3130.2,6.54125232]
[1768283983943,1.5713062,3131.0,3130.2,9.73592686]
[1768283984122,1.5713062,3131.0,3130.2,6.54125232]
[1768283984324,1.5713062,3131.0,3130.2,7.51485305]
[1768283984921,4.76517725,3131.0,3130.2,7.51485305]
[1768283987859,4.76517725,3131.0,3130.3,1.63932113]
[1768283988039,3.19387105,3131.0,3130.3,1.63932113]
[1768283988740,3.44678675,3131.1,3130.3,1.63932113]
[1768283989061,3.44678675,3131.1,3130.4,2.39080644]
[1768283990158,1.5713062,3131.0,3130.4,0.75148531]
[1768283990362,1.8223062,3131.0,3130.1,9.73603569]
[1768283990858,0.002,3130.7,3130.2,1.63932113]
[1768283992977,0.002,3130.7,3130.0,1.63932113]
[1768283993178,0.002,3130.7,3130.1,0.16393211]
[1768283993846,0.002,3130.7,3130.1,1.80325324]
[1768283994051,0.002,3130.7,3130.1,4.99797229]
[1768283994276,0.002,3130.7,3130.1,5.02992015]
[1768283995784,0.002,3130.7,3130.2,1.63932113]
[1768283995949,0.251,3130.8,3130.3,5.40492321]
[1768283996138,0.24333592,3130.8,3130.3,5.40492321]
[1768283997967,0.24333592,3130.8,3130.3,8.59943649]
[1768283998152,0.22110985,3130.8,3130.3,8.59943649]
[1768283998978,0.19888368,3130.8,3130.3,8.59943649]
[1768283999134,0.19888368,3130.8,3130.4,1.11506787]
[1768283999763,0.17665752,3130.8,3130.4,1.11506787]
[1768284000585,0.15443137,3130.8,3130.4,1.11506787]
[1768284000773,0.15443137,3130.8,3130.4,4.29456225]
[1768284001138,0.251,3130.7,3130.5,4.90193119]
[1768284001459,0.002,3131.1,3130.6,2.30624526]
[1768284001657,0.002,3131.1,3130.7,0.02222603]
[1768284001843,1.5733062,3131.1,3130.7,0.02222603]
[1768284002045,0.251,3131.0,3130.7,0.02222603]
[1768284002557,0.251,3131.0,3130.7,0.00724495]
[1768284002874,0.251,3131.0,3130.7,0.00824495]
[1768284003245,0.002,3130.8,3130.7,0.00824495]
[1768284003660,0.002,3130.8,3130.7,0.17300156]
[1768284004177,0.002,3130.8,3130.2,1.63932113]
[1768284004743,1.64464354,3130.3,3129.5,1.51888256]
[1768284004947,6.45025572,3130.1,3129.2,1.51888256]
[1768284005569,1.54832453,3130.1,3129.3,1.51888256]
[1768284005768,4.90393119,3130.8,3129.9,1.51888256]
[1768284005769,0.002,3130.8,3129.9,1.51888256]
[1768284006083,0.251,3130.7,3130.1,1.51888256]
[1768284006285,0.002,3130.8,3130.4,6.42081375]
[1768284006486,1.54832453,3131.0,3130.4,8.09635516]
[1768284006705,1.79932453,3131.0,3130.4,8.09635516]
[1768284009009,0.251,3130.9,3130.4,8.09635516]
[1768284009228,0.002,3131.1,3130.5,0.80963552]
[1768284009508,0.22252032,3130.9,3130.5,0.80963552]
[1768284010079,0.2002943,3130.9,3130.5,0.80963552]
[1768284010307,0.002,3131.1,3130.6,4.90193119]
[1768284010475,0.251,3131.2,3130.8,4.90193119]
[1768284010680,0.251,3131.2,3130.9,0.49019312]
[1768284011006,1.54832453,3131.6,3131.0,4.90193119]
[1768284011316,0.251,3131.5,3131.2,1.54110857]
[1768284011499,0.251,3131.5,3131.2,0.02222601]
[1768284011500,1.79932453,3131.5,3131.2,0.02222601]
[1768284011820,4.90193119,3131.4,3131.2,0.02222601]
[1768284012001,5.57205676,3131.4,3131.2,0.02222601]
[1768284013185,1.54832453,3131.3,3129.7,1.51888256]
[1768284013384,1.54832453,3131.1,3130.2,3.19468404]
[1768284013714,1.54832453,3131.1,3130.3,0.03194581]
[1768284014380,1.79932453,3131.0,3130.3,3.22649963]
[1768284015093,1.79932453,3131.0,3130.3,8.12843082]
[1768284015393,1.79932453,3131.0,3130.4,0.96473134]
[1768284015594,0.251,3131.0,3130.4,0.96473134]
[1768284015794,0.251,3131.0,3130.5,1.46916729]
[1768284018395,1.47722615,3130.5,3129.4,1.46916729]
[1768284018592,1.47722615,3129.8,3129.1,3.19678557]
[1768284018799,0.251,3129.7,3129.1,0.001]
[1768284018985,0.251,3129.7,3129.1,4.90293119]
[1768284019683,3.19491349,3130.0,3129.6,4.90193119]
[1768284019684,0.251,3130.0,3129.6,4.90193119]
[1768284020019,0.251,3130.1,3129.6,4.90193119]
[1768284020200,0.251,3130.1,3129.7,0.022226]
[1768284021218,0.251,3130.1,3129.7,1.49139329]
[1768284021387,0.25013859,3130.1,3129.7,1.49139329]
[1768284022221,0.25013859,3130.1,3129.7,0.022226]
[1768284022597,0.251,3130.1,3129.7,0.022226]
[1768284024419,1.47722615,3130.9,3130.0,4.90193119]
[1768284024598,2.21841927,3130.8,3130.0,4.90193119]
[1768284024918,0.251,3130.7,3130.0,4.90193119]
[1768284025319,0.251,3130.7,3129.8,6.37109848]
[1768284025722,1.72822615,3130.7,3129.8,6.37109848]
[1768284026024,1.72822615,3130.7,3129.8,9.56615967]
[1768284027823,4.92240036,3130.7,3130.0,0.001]
[1768284028024,3.44517421,3130.7,3130.0,1.47016729]
[1768284028224,4.92240036,3130.7,3130.0,0.001]
[1768284028420,1.72822615,3130.7,3130.0,0.001]
[1768284028623,4.92240128,3130.7,3130.0,0.001]
[1768284028922,1.72822615,3130.7,3130.0,0.001]
[1768284029506,4.92241049,3130.7,3130.0,0.001]
[1768284029891,1.47722615,3130.6,3130.0,0.001]
[1768284030637,1.47722615,3130.3,3130.0,0.001]
[1768284030836,1.47722615,3130.1,3130.0,0.001]
[1768284031324,0.251,3130.2,3130.0,0.001]
[1768284032092,3.44571304,3130.2,3130.0,0.001]
[1768284032295,1.47722615,3130.1,3129.7,0.022226]
[1768284034726,3.19488817,3130.0,3129.7,1e-08]
[1768284035594,3.19479511,3130.1,3129.7,1e-08]
[1768284035795,3.44569606,3130.2,3129.7,1e-08]
[1768284036736,0.251,3130.1,3129.8,6.37560661]
[1768284036918,0.251,3130.6,3129.9,1.47367542]
[1768284038798,9.81177304,3130.6,3129.7,1.47367543]
[1768284039098,1.46456488,3130.5,3129.7,1e-08]
[1768284039601,1.46456488,3130.3,3129.7,1e-08]
[1768284039801,0.002,3130.0,3129.7,1e-08]
[1768284040030,0.253,3130.0,3129.7,1e-08]
[1768284040736,0.253,3130.0,3129.5,0.001]
[1768284041426,1.46456488,3129.9,3129.5,0.001]
[1768284041628,6.64282833,3130.0,3129.5,0.001]
[1768284041629,0.251,3129.8,3129.5,0.001]
[1768284042931,0.251,3129.7,3129.5,0.001]
[1768284043127,3.19694053,3130.0,3129.5,1.47467542]
[1768284043331,0.251,3129.9,3129.5,1.47467542]
[1768284048250,3.19694053,3130.0,3129.5,1.47467542]
[1768284048251,0.251,3129.8,3129.5,0.001]
[1768284049342,0.7029606,3129.8,3129.5,0.001]
[1768284050714,1.46456488,3129.7,3129.5,0.001]
[1768284050917,0.251,3129.6,3129.5,0.001]
[1768284054175,0.002,3130.0,3129.5,1.47467542]
[1768284054356,0.251,3129.9,3129.5,1.47467542]
[1768284057384,0.002,3130.0,3129.5,4.67005856]
[1768284058875,0.002,3130.0,3129.6,1.47367542]
[1768284059080,0.251,3130.3,3129.8,1.47367542]
[1768284059258,0.251,3130.5,3129.8,1.47367542]
[1768284060677,3.19417382,3130.7,3129.9,1.47367542]
[1768284060883,3.44517382,3130.7,3130.0,1.47367542]
[1768284061495,4.9097387,3130.7,3130.0,1.47367542]
[1768284063276,0.002,3130.4,3130.0,1.47367542]
[1768284072424,0.002,3130.4,3130.1,1.37725046]
[1768284072759,0.002,3130.7,3130.0,3.19488808]
[1768284072760,1.58727269,3130.7,3130.0,3.19488808]
[1768284072892,1.58727269,3130.7,3130.1,0.31948881]
[1768284073093,0.253,3130.7,3130.1,0.31948881]
[1768284073616,0.253,3130.7,3130.1,1.69673927]
[1768284075393,0.253,3130.7,3130.1,4.89152108]
[1768284075622,0.002,3130.4,3130.1,4.57203227]
[1768284075787,1.37314131,3130.6,3130.1,3.19478181]
[1768284077024,1.37314131,3130.6,3130.0,3.19484862]
[1768284079024,0.002,3130.7,3130.0,4.61117035]
[1768284079230,0.002,3130.7,3130.1,1.41632173]
[1768284080827,0.251,3130.8,3130.3,1.41632173]
[1768284082527,0.002,3131.1,3130.3,1.41632173]
[1768284082734,0.251,3131.0,3130.3,1.41632173]
[1768284083104,1.61818711,3131.0,3130.3,1.41632173]
[1768284083632,0.251,3131.0,3130.3,1.41632173]
[1768284084821,0.251,3131.0,3130.2,1.41632173]
[1768284087053,3.44487557,3131.0,3130.2,1.41632173]
[1768284087345,3.44487557,3131.0,3130.4,0.001]
[1768284087845,0.002,3130.7,3130.4,0.001]
[1768284095566,0.251,3130.8,3130.4,1.30623916]
[1768284095731,0.251,3130.8,3130.4,0.001]
[1768284096631,1.30418467,3130.9,3130.4,0.001]
[1768284096964,0.002,3131.1,3130.8,1.30523916]
[1768284099066,0.002,3131.4,3130.8,1.33717987]
[1768284100453,0.002,3131.4,3130.9,1.30523916]
[1768284100769,1.28728322,3131.7,3131.0,1.30523916]
[1768284100964,0.002,3131.3,3131.0,1.30523916]
[1768284101168,1.28728322,3131.7,3131.0,1.30523916]
[1768284101370,0.002,3131.7,3131.0,1.30523916]
[1768284101670,0.002,3131.7,3131.1,1.30523916]
[1768284101835,0.002,3131.7,3130.8,3.44502793]
[1768284102035,1.27793816,3131.7,3130.9,1.30523916]
[1768284102842,0.002,3131.7,3131.0,1.30523916]
[1768284105476,0.002,3131.7,3131.1,1.30523916]
[1768284105647,0.002,3131.7,3131.0,9.39899084]
[1768284105969,0.002,3131.7,3131.1,1.30523916]
[1768284109375,0.002,3131.7,3131.2,1.30523916]
[1768284112054,0.002,3131.7,3131.1,4.4989393]
[1768284112661,0.002,3131.7,3131.2,3.19366245]
[1768284113182,0.002,3131.7,3131.3,1.30523916]
[1768284113384,0.002,3131.4,3131.3,1.30523916]
[1768284113553,0.002,3131.7,3131.2,3.19366245]
[1768284115292,1.47607543,3131.9,3131.2,3.19366245]
[1768284117587,1.47607543,3131.9,3131.1,4.49897285]
[1768284117969,0.251,3131.9,3131.2,1.30523916]
[1768284119353,0.002,3132.0,3131.2,4.49887285]
[1768284119559,0.253,3132.0,3131.3,1.30523916]
[1768284124413,0.002,3132.0,3131.5,1.30523916]
[1768284124579,0.002,3132.0,3131.7,1.31204126]
[1768284124784,0.002,3132.0,3131.3,1.31204126]
[1768284125010,0.002,3132.0,3131.4,1.31204126]
[1768284125171,0.002,3131.7,3131.4,1.31204126]
[1768284125371,1.17316916,3132.0,3131.2,4.50563723]
[1768284125672,1.17316916,3132.0,3131.3,3.19355411]
[1768284126286,1.17316916,3132.0,3131.3,4.50559537]
[1768284127310,1.17316916,3132.0,3131.3,9.40549271]
[1768284128324,1.17316916,3132.0,3131.4,1.31204126]
[1768284128325,0.002,3132.0,3131.4,1.31204126]
[1768284131325,1.14681899,3132.0,3131.3,3.19352711]
[1768284131492,1.14681899,3132.0,3131.3,1.31204126]
[1768284131823,0.002,3132.0,3131.3,1.31204126]
[1768284132185,0.002,3132.0,3131.4,1.31204126]
[1768284132522,0.251,3132.2,3131.5,6.2119386]
[1768284132930,0.251,3132.2,3131.6,1.31204126]
[1768284133104,0.251,3132.2,3131.7,1.31204126]
[1768284133423,0.002,3132.3,3131.7,1.31204126]
[1768284133611,0.253,3132.3,3131.7,1.31204126]
[1768284133815,0.002,3132.3,3131.8,1.18208643]
[1768284135123,0.002,3132.3,3131.9,1.18208643]
[1768284135294,0.002,3132.3,3132.0,1.18208643]
[1768284135630,0.002,3132.4,3131.8,9.27499]
[1768284136031,1.12948196,3132.6,3132.0,8.09274403]
[1768284136423,1.12948196,3132.6,3132.0,4.89989734]
[1768284136596,1.12948196,3132.6,3132.0,8.09274349]
[1768284136999,1.12948196,3132.6,3132.0,4.89989734]
[1768284137624,1.12948196,3132.6,3132.0,8.0927431]
[1768284137816,1.12948196,3132.6,3132.0,4.89989734]
[1768284138327,0.002,3132.6,3132.1,1.18208643]
[1768284139126,0.002,3132.2,3132.1,1.18208643]
[1768284139329,1.1123509,3132.6,3131.9,3.19294988]
[1768284139831,1.1123509,3132.6,3131.8,9.27501836]
[1768284140535,0.002,3132.6,3131.9,1.18208643]
[1768284142031,0.002,3132.6,3132.0,1.18208643]
[1768284144910,0.002,3132.6,3132.1,1.18208643]
[1768284145117,0.002,3132.6,3132.2,1.18208643]
[1768284145614,0.002,3132.6,3132.0,4.89989734]
[1768284145810,0.002,3132.6,3132.0,6.08198377]
[1768284146513,0.002,3132.6,3132.1,1.18208643]
[1768284149922,0.25381121,3132.8,3132.7,1.18208643]
[1768284149923,0.00281121,3132.8,3132.7,1.18208643]
[1768284150127,0.002,3133.0,3132.7,1.18208643]
[1768284151450,0.002,3133.1,3132.6,4.89989734]
[1768284151801,0.002,3133.3,3132.6,4.89989734]
[1768284152047,0.002,3133.3,3132.6,8.09208519]
[1768284152231,0.002,3133.3,3132.7,1.18208643]
[1768284152629,0.002,3133.3,3132.9,1.18208643]
[1768284152806,0.253,3133.5,3133.0,6.08198377]